[Event "Mistrzostwa Polski Juniorek Młodszych "]
[Site "Suwałki, Poland"]
[Date "????.??.??"]
[Round "1.9"]
[White "Tokarz, Gabriela"]
[Black "Chrzanowska, Karolina"]
[Result "1-0"]
[WhiteElo "1825"]
[BlackElo "1527"]
[PlyCount "95"]
[TimeControl "90/40+15:0"]
[WhiteClock "0:09:12"]
[BlackClock "1:16:47"]

1. d4 {[%emt 0:00:00]} d5 {[%emt 0:00:00]} 2. c4 {[%emt 0:00:00]} e6 {[%emt 0:
00:00]} 3. Nc3 {[%emt 0:00:00]} Nf6 {[%emt 0:00:00]} 4. cxd5 {[%emt 0:00:00]}
exd5 {[%emt 0:00:00]} 5. Bg5 {[%emt 0:00:00]} Be7 {[%emt 0:00:00]} 6. Qc2 {
[%emt 0:00:00]} c6 {[%emt 0:00:00]} 7. e3 {[%emt 0:00:00]} O-O {[%emt 0:00:00]}
8. Bd3 {[%emt 0:00:00]} h6 {[%emt 0:00:00]} 9. Bh4 {[%emt 0:00:00]} Re8 {
[%emt 0:00:00]} 10. Nf3 {[%emt 0:00:00]} Ne4 {[%emt 0:00:00]} 11. Bxe7 {
[%emt 0:00:00]} Qxe7 {[%emt 0:00:00]} 12. O-O {[%emt 0:00:00]} Nd7 {[%emt 0:00:
00]} 13. Rab1 {[%emt 0:00:00]} Ndf6 {[%emt 0:00:00]} 14. Ne5 {[%emt 0:00:00]}
Nd6 {[%emt 0:00:00]} 15. b4 {[%emt 0:00:00]} a6 {[%emt 0:00:00]} 16. Na4 {
[%emt 0:00:00]} Ng4 {[%emt 0:00:00]} 17. Nb6 {[%emt 0:00:00]} Rb8 {[%emt 0:00:
00]} 18. Nxc8 {[%emt 0:00:00]} Rbxc8 {[%emt 0:00:00]} 19. Nxg4 {[%emt 0:00:00]}
f6 {[%emt 0:00:00]} 20. h3 {[%emt 0:00:00]} Qc7 {[%emt 0:00:00]} 21. Nh2 {
[%emt 0:00:00]} Re7 {[%emt 0:00:24]} 22. Nf3 {[%emt 0:00:00]} Nf7 {[%emt 0:03:
37]} 23. Nh4 {[%emt 0:00:00]} Ree8 {[%emt 0:00:44]} 24. Bh7+ {[%emt 0:00:00]}
Kh8 {[%emt 0:00:20]} 25. Bf5 {[%emt 0:00:00]} Rcd8 {[%emt 0:00:13]} 26. Ng6+ {
[%emt 0:00:00]} Kg8 {[%emt 0:00:00]} 27. Nf4 {[%emt 0:00:00]} Qb8 {[%emt 0:01:
10]} 28. Bg6 {[%emt 0:00:00]} Re7 {[%emt 0:00:30]} 29. Bh7+ {[%emt 0:00:00]}
Kh8 {[%emt 0:00:00]} 30. Ng6+ {[%emt 0:00:00]} Kxh7 {[%emt 0:00:00]} 31. Nxe7+
{[%emt 0:00:00]} Kh8 {[%emt 0:00:00]} 32. Ng6+ {[%emt 0:00:00]} Kg8 {[%emt 0:
00:00]} 33. Nf4 {[%emt 0:00:00]} Re8 {[%emt 0:00:00]} 34. a4 {[%emt 0:00:00]}
Ng5 {[%emt 0:00:53]} 35. Rfc1 {[%emt 0:00:00]} Ne4 {[%emt 0:00:47]} 36. b5 {
[%emt 0:00:00]} axb5 {[%emt 0:00:00]} 37. axb5 {[%emt 0:00:00]} cxb5 {[%emt 0:
00:36]} 38. Rxb5 {[%emt 0:00:00]} Qa7 {[%emt 0:00:23]} 39. Qb2 {[%emt 0:00:00]}
Nd6 {[%emt 0:00:04]} 40. Rxd5 {[%emt 0:00:00]} Ne4 {[%emt 0:00:00]} 41. Rd7 {
[%emt 0:00:00]} Qa5 {[%emt 0:00:00]} 42. Qb3+ {[%emt 0:00:00]} Kh7 {[%emt 0:00:
00]} 43. Qf7 {[%emt 0:00:00]} Rg8 {[%emt 0:00:00]} 44. Qg6+ {[%emt 0:00:00]}
Kh8 {[%emt 0:00:00]} 45. Qxe4 {[%emt 0:00:00]} Qb5 {[%emt 0:00:00]} 46. Ng6+ {
[%emt 0:00:00]} Kh7 {[%emt 0:00:00]} 47. Nf8+ {[%emt 0:00:00]} Kh8 {[%emt 0:00:
00]} 48. Qh7# {[%emt 0:00:00]} 1-0

[Event "Mistrzostwa Polski Juniorek Młodszych "]
[Site "Suwałki, Poland"]
[Date "????.??.??"]
[Round "1.8"]
[White "Sekiewicz, Weronika"]
[Black "Popczynska, Michalina"]
[Result "0-1"]
[WhiteElo "1545"]
[BlackElo "1834"]
[PlyCount "84"]
[TimeControl "90/40+15:0"]
[WhiteClock "0:16:35"]
[BlackClock "0:15:39"]

1. e4 {[%emt 0:00:00]} c5 {[%emt 0:00:00]} 2. Nf3 {[%emt 0:00:00]} e6 {[%emt 0:
00:00]} 3. d4 {[%emt 0:00:00]} cxd4 {[%emt 0:00:00]} 4. Nxd4 {[%emt 0:00:00]}
a6 {[%emt 0:00:00]} 5. Nc3 {[%emt 0:00:00]} Qc7 {[%emt 0:00:00]} 6. a3 {
[%emt 0:00:00]} b5 {[%emt 0:00:00]} 7. Bd3 {[%emt 0:00:00]} Bb7 {[%emt 0:00:00]
} 8. O-O {[%emt 0:00:00]} Nf6 {[%emt 0:00:00]} 9. Bd2 {[%emt 0:00:00]} Be7 {
[%emt 0:00:00]} 10. Re1 {[%emt 0:00:00]} d6 {[%emt 0:00:00]} 11. Be3 {[%emt 0:
00:00]} Nbd7 {[%emt 0:00:00]} 12. h3 {[%emt 0:00:00]} Nb6 {[%emt 0:00:00]} 13.
f3 {[%emt 0:00:00]} Nc4 {[%emt 0:00:00]} 14. Bxc4 {[%emt 0:00:00]} bxc4 {
[%emt 0:00:00]} 15. Qd2 {[%emt 0:00:00]} O-O {[%emt 0:00:00]} 16. Bf2 {[%emt 0:
00:00]} h6 {[%emt 0:00:00]} 17. Rad1 {[%emt 0:00:00]} Rab8 {[%emt 0:00:00]} 18.
Nde2 {[%emt 0:00:00]} Ba8 {[%emt 0:00:00]} 19. Rb1 {[%emt 0:00:00]} Rfd8 {
[%emt 0:00:00]} 20. Nd4 {[%emt 0:00:00]} Rb7 {[%emt 0:00:00]} 21. b3 {[%emt 0:
00:00]} cxb3 {[%emt 0:00:00]} 22. cxb3 {[%emt 0:00:00]} Rc8 {[%emt 0:00:00]}
23. Rec1 {[%emt 0:00:00]} Qb8 {[%emt 0:00:00]} 24. Qd3 {[%emt 0:00:00]} Rbc7 {
[%emt 0:00:00]} 25. Nce2 {[%emt 0:00:00]} Bb7 {[%emt 0:00:00]} 26. b4 {[%emt 0:
00:01]} Rxc1+ {[%emt 0:00:00]} 27. Rxc1 {[%emt 0:00:00]} Rxc1+ {[%emt 0:00:00]}
28. Nxc1 {[%emt 0:00:00]} d5 {[%emt 0:00:00]} 29. exd5 {[%emt 0:00:35]} Nxd5 {
[%emt 0:00:00]} 30. Nce2 {[%emt 0:01:02]} Bd6 {[%emt 0:00:00]} 31. Qc2 {
[%emt 0:02:46]} Qd8 {[%emt 0:00:00]} 32. Qd2 {[%emt 0:02:05]} Qf6 {[%emt 0:01:
18]} 33. Ng3 {[%emt 0:01:02]} Bf4 {[%emt 0:01:54]} 34. Qd3 {[%emt 0:00:41]} Qe5
{[%emt 0:01:53]} 35. Nde2 {[%emt 0:00:26]} Qa1+ {[%emt 0:01:13]} 36. Kh2 {
[%emt 0:00:17]} Bb8 {[%emt 0:00:58]} 37. Bd4 {[%emt 0:00:15]} Qe1 {[%emt 0:01:
08]} 38. f4 {[%emt 0:00:26]} Nxf4 {[%emt 0:00:35]} 39. Nxf4 {[%emt 0:00:00]}
Bxf4 {[%emt 0:00:00]} 40. Bc3 {[%emt 0:00:00]} Qf2 {[%emt 0:00:00]} 41. Qd8+ {
[%emt 0:00:00]} Kh7 {[%emt 0:00:00]} 42. Qd3+ {[%emt 0:00:00]} g6 {[%emt 0:00:
00]} 0-1

[Event "Mistrzostwa Polski Juniorek Młodszych "]
[Site "Suwałki, Poland"]
[Date "????.??.??"]
[Round "1.16"]
[White "Koc, Hanna"]
[Black "Mataczyna, Aleksandra"]
[Result "1-0"]
[WhiteElo "1514"]
[BlackElo "1747"]
[PlyCount "108"]
[TimeControl "90/40+15:0"]
[WhiteClock "0:00:51"]
[BlackClock "0:28:39"]

1. d4 {[%emt 0:00:00]} d5 {[%emt 0:00:00]} 2. Nf3 {[%emt 0:00:00]} Nf6 {
[%emt 0:00:00]} 3. c3 {[%emt 0:00:00]} Bg4 {[%emt 0:00:00]} 4. Ne5 {[%emt 0:00:
00]} Bf5 {[%emt 0:00:00]} 5. Qb3 {[%emt 0:00:00]} Qc8 {[%emt 0:00:00]} 6. Bf4 {
[%emt 0:00:00]} e6 {[%emt 0:00:00]} 7. Nd2 {[%emt 0:00:00]} Be7 {[%emt 0:00:00]
} 8. e3 {[%emt 0:00:00]} Nbd7 {[%emt 0:00:00]} 9. Bg5 {[%emt 0:00:00]} O-O {
[%emt 0:00:00]} 10. Nxd7 {[%emt 0:00:00]} Qxd7 {[%emt 0:00:00]} 11. Nf3 {
[%emt 0:00:00]} Ne4 {[%emt 0:00:00]} 12. Ne5 {[%emt 0:00:00]} Qd8 {[%emt 0:00:
00]} 13. Bxe7 {[%emt 0:00:00]} Qxe7 {[%emt 0:00:00]} 14. Qxb7 {[%emt 0:00:00]}
Rab8 {[%emt 0:00:00]} 15. Nc6 {[%emt 0:00:00]} Rxb7 {[%emt 0:00:00]} 16. Nxe7+
{[%emt 0:00:00]} Kh8 {[%emt 0:00:00]} 17. Nxf5 {[%emt 0:00:00]} exf5 {[%emt 0:
00:00]} 18. f3 {[%emt 0:00:00]} Nd6 {[%emt 0:00:00]} 19. b3 {[%emt 0:00:00]} a5
{[%emt 0:00:00]} 20. Bd3 {[%emt 0:00:00]} c6 {[%emt 0:00:00]} 21. Kf2 {[%emt 0:
00:00]} g6 {[%emt 0:00:00]} 22. Rae1 {[%emt 0:00:00]} Rc7 {[%emt 0:00:00]} 23.
e4 {[%emt 0:00:00]} fxe4 {[%emt 0:00:00]} 24. fxe4 {[%emt 0:00:00]} dxe4 {
[%emt 0:00:00]} 25. Bxe4 {[%emt 0:00:00]} Nb5 {[%emt 0:00:00]} 26. Rc1 {
[%emt 0:00:00]} Rfc8 {[%emt 0:02:29]} 27. Bd3 {[%emt 0:00:00]} Nd6 {[%emt 0:00:
37]} 28. c4 {[%emt 0:00:00]} Ne8 {[%emt 0:03:25]} 29. Rhe1 {[%emt 0:00:00]} f6
{[%emt 0:00:42]} 30. Re6 {[%emt 0:00:00]} Kg8 {[%emt 0:00:00]} 31. Rce1 {
[%emt 0:00:00]} Kf7 {[%emt 0:00:25]} 32. c5 {[%emt 0:00:00]} Ng7 {[%emt 0:00:
00]} 33. R6e2 {[%emt 0:00:00]} Rd8 {[%emt 0:00:24]} 34. Bc4+ {[%emt 0:00:00]}
Kf8 {[%emt 0:00:00]} 35. Rd2 {[%emt 0:00:00]} Rcd7 {[%emt 0:00:24]} 36. Red1 {
[%emt 0:00:00]} Nf5 {[%emt 0:00:29]} 37. d5 {[%emt 0:00:00]} cxd5 {[%emt 0:00:
21]} 38. Rxd5 {[%emt 0:00:00]} Rxd5 {[%emt 0:00:18]} 39. Rxd5 {[%emt 0:00:00]}
Rxd5 {[%emt 0:00:00]} 40. Bxd5 {[%emt 0:00:00]} Ke7 {[%emt 0:00:00]} 41. a3 {
[%emt 0:00:00]} Kd7 {[%emt 0:00:00]} 42. b4 {[%emt 0:00:00]} axb4 {[%emt 0:00:
00]} 43. axb4 {[%emt 0:00:00]} Nd4 {[%emt 0:00:00]} 44. Kg3 {[%emt 0:00:00]}
Kc7 {[%emt 0:01:04]} 45. Kf4 {[%emt 0:00:00]} Nb5 {[%emt 0:00:19]} 46. Bc4 {
[%emt 0:00:00]} Na3 {[%emt 0:00:15]} 47. Be2 {[%emt 0:00:00]} Kc6 {[%emt 0:00:
28]} 48. Bf3+ {[%emt 0:00:00]} Kb5 {[%emt 0:00:05]} 49. c6 {[%emt 0:00:00]} Kb6
{[%emt 0:00:00]} 50. g4 {[%emt 0:00:00]} Nc2 {[%emt 0:00:20]} 51. b5 {[%emt 0:
00:00]} Nd4 {[%emt 0:00:03]} 52. Ke4 {[%emt 0:00:00]} Nxb5 {[%emt 0:00:08]} 53.
Kd5 {[%emt 0:00:00]} Kc7 {[%emt 0:00:48]} 54. Kc5 {[%emt 0:00:00]} Na7 {
[%emt 0:00:52]} 1-0

[Event "Mistrzostwa Polski Juniorek Młodszych "]
[Site "Suwałki, Poland"]
[Date "????.??.??"]
[Round "1.5"]
[White "Izafatava, Kira"]
[Black "Grabowska, Kinga"]
[Result "1-0"]
[WhiteElo "1905"]
[BlackElo "1576"]
[PlyCount "61"]
[TimeControl "90/40+15:0"]
[WhiteClock "0:05:57"]
[BlackClock "0:13:35"]

1. e4 {[%emt 0:00:00]} e6 {[%emt 0:00:00]} 2. d4 {[%emt 0:00:00]} d5 {[%emt 0:
00:00]} 3. Nc3 {[%emt 0:00:00]} Bb4 {[%emt 0:00:59]} 4. e5 {[%emt 0:00:00]} c5
{[%emt 0:00:00]} 5. Qg4 {[%emt 0:00:00]} Ne7 {[%emt 0:00:00]} 6. Qxg7 {[%emt 0:
00:00]} Rg8 {[%emt 0:00:00]} 7. Qxh7 {[%emt 0:00:00]} cxd4 {[%emt 0:00:00]} 8.
a3 {[%emt 0:00:00]} Qa5 {[%emt 0:00:00]} 9. Rb1 {[%emt 0:00:00]} dxc3 {[%emt 0:
00:00]} 10. axb4 {[%emt 0:00:00]} Qxb4 {[%emt 0:00:00]} 11. Qd3 {[%emt 0:00:00]
} cxb2+ {[%emt 0:00:00]} 12. Bd2 {[%emt 0:00:00]} Qb6 {[%emt 0:00:00]} 13. Nf3
{[%emt 0:00:00]} Rg4 {[%emt 0:00:00]} 14. h4 {[%emt 0:00:00]} Nbc6 {[%emt 0:00:
00]} 15. Bc3 {[%emt 0:00:00]} Ra4 {[%emt 0:00:00]} 16. h5 {[%emt 0:00:00]} d4 {
[%emt 0:00:00]} 17. h6 {[%emt 0:00:00]} Ng6 {[%emt 0:00:00]} 18. Qxg6 {[%emt 0:
00:00]} fxg6 {[%emt 0:00:00]} 19. h7 {[%emt 0:00:00]} dxc3 {[%emt 0:00:00]} 20.
Rd1 {[%emt 0:00:00]} Re4+ {[%emt 0:00:00]} 21. Be2 {[%emt 0:00:00]} Nd4 {
[%emt 0:00:00]} 22. h8=Q+ {[%emt 0:00:00]} Kd7 {[%emt 0:00:00]} 23. Rh7+ {
[%emt 0:00:00]} Kc6 {[%emt 0:00:00]} 24. Qe8+ {[%emt 0:00:00]} Kd5 {[%emt 0:00:
00]} 25. Rxd4+ {[%emt 0:00:00]} Rxd4 {[%emt 0:00:00]} 26. Rd7+ {[%emt 0:00:00]}
Bxd7 {[%emt 0:00:00]} 27. Qxd7+ {[%emt 0:00:00]} Ke4 {[%emt 0:00:25]} 28. Bd3+
{[%emt 0:00:00]} Kf4 {[%emt 0:00:19]} 29. Qf7+ {[%emt 0:00:00]} Kg4 {[%emt 0:
00:15]} 30. Qxg6+ {[%emt 0:00:00]} Kf4 {[%emt 0:00:08]} 31. Qg3# {[%emt 0:00:
00]} 1-0

[Event "Mistrzostwa Polski Juniorek Młodszych "]
[Site "Suwałki, Poland"]
[Date "????.??.??"]
[Round "1.10"]
[White "Urbanska, Ada"]
[Black "Figa, Karolina"]
[Result "0-1"]
[WhiteElo "1526"]
[BlackElo "1811"]
[PlyCount "44"]
[TimeControl "90/40+15:0"]
[WhiteClock "1:22:32"]
[BlackClock "1:20:24"]

1. e4 {[%emt 0:00:00]} c6 {[%emt 0:00:00]} 2. d4 {[%emt 0:00:00]} d5 {[%emt 0:
00:00]} 3. exd5 {[%emt 0:00:00]} cxd5 {[%emt 0:00:00]} 4. Nf3 {[%emt 0:00:00]}
Nc6 {[%emt 0:00:00]} 5. Bf4 {[%emt 0:00:00]} Bg4 {[%emt 0:00:00]} 6. Bb5 {
[%emt 0:00:00]} e6 {[%emt 0:00:00]} 7. Nbd2 {[%emt 0:00:00]} Bd6 {[%emt 0:00:
00]} 8. Bxd6 {[%emt 0:00:00]} Qxd6 {[%emt 0:00:00]} 9. O-O {[%emt 0:00:00]}
Nge7 {[%emt 0:00:00]} 10. c3 {[%emt 0:00:00]} O-O {[%emt 0:00:00]} 11. h3 {
[%emt 0:00:00]} Bh5 {[%emt 0:00:00]} 12. Qc2 {[%emt 0:00:00]} f6 {[%emt 0:00:
00]} 13. Rfe1 {[%emt 0:04:45]} Bg6 {[%emt 0:06:35]} 14. Bd3 {[%emt 0:01:43]} e5
{[%emt 0:00:18]} 15. dxe5 {[%emt 0:03:36]} fxe5 {[%emt 0:00:13]} 16. Bxg6 {
[%emt 0:06:20]} Nxg6 {[%emt 0:00:08]} 17. Rad1 {[%emt 0:03:14]} Qf6 {[%emt 0:
03:41]} 18. b4 {[%emt 0:06:31]} e4 {[%emt 0:00:39]} 19. Nh2 {[%emt 0:08:03]}
Qxf2+ {[%emt 0:00:25]} 20. Kh1 {[%emt 0:00:11]} Nf4 {[%emt 0:00:28]} 21. Rg1 {
[%emt 0:00:47]} Ne2 {[%emt 0:03:43]} 22. Rgf1 {[%emt 0:02:47]} Ng3# {[%emt 0:
00:47]} 0-1

[Event "Mistrzostwa Polski Juniorek Młodszych "]
[Site "Suwałki, Poland"]
[Date "????.??.??"]
[Round "1.14"]
[White "Grad, Zuzanna"]
[Black "Debowska, Olga"]
[Result "0-1"]
[WhiteElo "1521"]
[BlackElo "1778"]
[PlyCount "62"]
[TimeControl "90/40+15:0"]
[WhiteClock "0:14:18"]
[BlackClock "0:13:16"]

1. e4 {[%emt 0:00:00]} e5 {[%emt 0:00:00]} 2. Nf3 {[%emt 0:00:00]} Nf6 {
[%emt 0:00:00]} 3. Nc3 {[%emt 0:00:00]} Nc6 {[%emt 0:00:00]} 4. d4 {[%emt 0:00:
00]} exd4 {[%emt 0:00:00]} 5. Nxd4 {[%emt 0:00:00]} Bb4 {[%emt 0:00:00]} 6.
Nxc6 {[%emt 0:00:00]} bxc6 {[%emt 0:00:00]} 7. Bd3 {[%emt 0:00:00]} O-O {
[%emt 0:00:00]} 8. O-O {[%emt 0:00:00]} d5 {[%emt 0:00:00]} 9. exd5 {[%emt 0:
00:00]} cxd5 {[%emt 0:00:00]} 10. h3 {[%emt 0:00:00]} h6 {[%emt 0:00:00]} 11.
Bf4 {[%emt 0:00:00]} c6 {[%emt 0:00:00]} 12. Qf3 {[%emt 0:00:00]} Bd6 {[%emt 0:
00:00]} 13. Ne2 {[%emt 0:00:00]} Ne8 {[%emt 0:00:00]} 14. Nd4 {[%emt 0:00:00]}
Bd7 {[%emt 0:00:00]} 15. c4 {[%emt 0:00:00]} Bxf4 {[%emt 0:00:00]} 16. Qxf4 {
[%emt 0:00:00]} Qf6 {[%emt 0:00:00]} 17. Qxf6 {[%emt 0:00:00]} Nxf6 {[%emt 0:
00:00]} 18. Rfe1 {[%emt 0:00:00]} Rfe8 {[%emt 0:00:00]} 19. Rad1 {[%emt 0:00:
00]} Rad8 {[%emt 0:00:00]} 20. cxd5 {[%emt 0:00:00]} Nxd5 {[%emt 0:00:00]} 21.
Bc4 {[%emt 0:00:00]} Nb6 {[%emt 0:00:00]} 22. Bb3 {[%emt 0:00:00]} Rxe1+ {
[%emt 0:00:00]} 23. Rxe1 {[%emt 0:00:00]} c5 {[%emt 0:00:00]} 24. Nf3 {[%emt 0:
00:00]} c4 {[%emt 0:00:00]} 25. Bc2 {[%emt 0:00:00]} Be6 {[%emt 0:00:00]} 26.
Re2 {[%emt 0:00:00]} Kf8 {[%emt 0:00:00]} 27. Kf1 {[%emt 0:00:00]} Nd5 {
[%emt 0:00:00]} 28. Rd2 {[%emt 0:00:00]} Rb8 {[%emt 0:00:00]} 29. Be4 {[%emt 0:
00:00]} c3 {[%emt 0:00:00]} 30. bxc3 {[%emt 0:00:00]} Nxc3 {[%emt 0:00:00]} 31.
Bc6 {[%emt 0:00:00]} Rb1+ {[%emt 0:00:00]} 0-1

[Event "Mistrzostwa Polski Juniorek Młodszych "]
[Site "Suwałki, Poland"]
[Date "????.??.??"]
[Round "1.12"]
[White "Woytitzki, Maja"]
[Black "Gora, Maria"]
[Result "0-1"]
[WhiteElo "1525"]
[BlackElo "1791"]
[PlyCount "90"]
[TimeControl "90/40+15:0"]
[WhiteClock "0:08:44"]
[BlackClock "0:16:04"]

1. d4 {[%emt 0:00:00]} Nf6 {[%emt 0:00:00]} 2. c4 {[%emt 0:00:00]} e6 {[%emt 0:
00:00]} 3. Nf3 {[%emt 0:00:00]} Bb4+ {[%emt 0:00:00]} 4. Bd2 {[%emt 0:00:00]}
Qe7 {[%emt 0:00:00]} 5. a3 {[%emt 0:00:00]} Bxd2+ {[%emt 0:00:00]} 6. Nbxd2 {
[%emt 0:00:00]} d6 {[%emt 0:00:00]} 7. g3 {[%emt 0:00:00]} e5 {[%emt 0:00:00]}
8. dxe5 {[%emt 0:00:00]} dxe5 {[%emt 0:00:00]} 9. e3 {[%emt 0:00:00]} a5 {
[%emt 0:00:00]} 10. Qc2 {[%emt 0:00:00]} Nbd7 {[%emt 0:00:00]} 11. Bg2 {
[%emt 0:00:00]} O-O {[%emt 0:00:00]} 12. O-O {[%emt 0:00:00]} g6 {[%emt 0:00:
00]} 13. Ne4 {[%emt 0:00:00]} Nxe4 {[%emt 0:00:00]} 14. Qxe4 {[%emt 0:00:00]}
Re8 {[%emt 0:00:00]} 15. Qc2 {[%emt 0:00:00]} Nc5 {[%emt 0:00:00]} 16. Rfd1 {
[%emt 0:00:00]} Bf5 {[%emt 0:02:52]} 17. Qe2 {[%emt 0:00:00]} Nb3 {[%emt 0:00:
00]} 18. Ra2 {[%emt 0:00:00]} Rad8 {[%emt 0:00:00]} 19. Nh4 {[%emt 0:00:00]}
Be6 {[%emt 0:00:00]} 20. Bd5 {[%emt 0:03:59]} c6 {[%emt 0:00:00]} 21. Bxe6 {
[%emt 0:00:16]} Qxe6 {[%emt 0:00:00]} 22. Nf3 {[%emt 0:00:55]} Rxd1+ {[%emt 0:
00:00]} 23. Qxd1 {[%emt 0:00:00]} Qxc4 {[%emt 0:00:00]} 24. Kg2 {[%emt 0:00:36]
} Qd5 {[%emt 0:00:03]} 25. Qxd5 {[%emt 0:00:20]} cxd5 {[%emt 0:00:00]} 26. a4 {
[%emt 0:00:00]} e4 {[%emt 0:02:08]} 27. Ne1 {[%emt 0:00:00]} Rc8 {[%emt 0:00:
33]} 28. Ra3 {[%emt 0:00:00]} Nd2 {[%emt 0:00:00]} 29. Ra1 {[%emt 0:00:00]} Rc5
{[%emt 0:00:50]} 30. Rd1 {[%emt 0:00:00]} Nc4 {[%emt 0:00:27]} 31. b3 {[%emt 0:
00:04]} Ne5 {[%emt 0:00:14]} 32. Rd2 {[%emt 0:01:35]} Kf8 {[%emt 0:00:25]} 33.
h3 {[%emt 0:00:22]} Ke7 {[%emt 0:00:00]} 34. Rc2 {[%emt 0:00:05]} Kd6 {[%emt 0:
00:55]} 35. Kf1 {[%emt 0:00:17]} Rxc2 {[%emt 0:00:18]} 36. Nxc2 {[%emt 0:00:00]
} Nc6 {[%emt 0:00:17]} 37. Ke2 {[%emt 0:00:00]} Kc5 {[%emt 0:00:00]} 38. Kd2 {
[%emt 0:00:00]} d4 {[%emt 0:00:13]} 39. Na3 {[%emt 0:00:43]} Kb4 {[%emt 0:00:
27]} 40. Nb5 {[%emt 0:00:00]} d3 {[%emt 0:00:00]} 41. Nd6 {[%emt 0:00:00]} f5 {
[%emt 0:00:00]} 42. g4 {[%emt 0:00:00]} Kxb3 {[%emt 0:00:00]} 43. gxf5 {
[%emt 0:00:00]} gxf5 {[%emt 0:00:00]} 44. Nxf5 {[%emt 0:00:00]} Ne5 {[%emt 0:
00:00]} 45. Nd6 {[%emt 0:00:00]} Nc4+ {[%emt 0:00:00]} 0-1

[Event "Mistrzostwa Polski Juniorek Młodszych "]
[Site "Suwałki, Poland"]
[Date "????.??.??"]
[Round "1.22"]
[White "Grad, Barbara"]
[Black "Pisznot, Lena"]
[Result "1-0"]
[WhiteElo "1480"]
[BlackElo "1652"]
[PlyCount "145"]
[TimeControl "90/40+15:0"]
[WhiteClock "0:41:06"]
[BlackClock "0:33:32"]

1. e4 {[%emt 0:00:01]} c5 {[%emt 0:00:00]} 2. c3 {[%emt 0:00:00]} g6 {[%emt 0:
00:00]} 3. d4 {[%emt 0:00:00]} cxd4 {[%emt 0:00:00]} 4. cxd4 {[%emt 0:00:00]}
Bg7 {[%emt 0:00:00]} 5. Nf3 {[%emt 0:00:00]} Nc6 {[%emt 0:00:00]} 6. Be3 {
[%emt 0:00:00]} e6 {[%emt 0:00:00]} 7. Nc3 {[%emt 0:00:00]} Nge7 {[%emt 0:00:
00]} 8. Be2 {[%emt 0:00:00]} d5 {[%emt 0:00:00]} 9. e5 {[%emt 0:00:00]} O-O {
[%emt 0:00:00]} 10. O-O {[%emt 0:00:00]} f6 {[%emt 0:00:00]} 11. exf6 {[%emt 0:
00:00]} Bxf6 {[%emt 0:00:00]} 12. Bg5 {[%emt 0:00:00]} Bxg5 {[%emt 0:00:00]}
13. Nxg5 {[%emt 0:00:00]} Qb6 {[%emt 0:00:00]} 14. Nf3 {[%emt 0:00:00]} Qxb2 {
[%emt 0:00:00]} 15. Na4 {[%emt 0:00:00]} Qb4 {[%emt 0:00:00]} 16. a3 {[%emt 0:
00:00]} Qd6 {[%emt 0:00:00]} 17. Nc5 {[%emt 0:00:00]} Rb8 {[%emt 0:00:00]} 18.
Bb5 {[%emt 0:00:00]} a6 {[%emt 0:00:00]} 19. Ba4 {[%emt 0:00:00]} b5 {[%emt 0:
00:00]} 20. Bc2 {[%emt 0:00:00]} e5 {[%emt 0:00:00]} 21. Nb3 {[%emt 0:00:00]}
e4 {[%emt 0:00:00]} 22. Nfd2 {[%emt 0:00:00]} Nf5 {[%emt 0:00:00]} 23. Nb1 {
[%emt 0:00:00]} Qf6 {[%emt 0:00:00]} 24. Nc3 {[%emt 0:00:00]} Rd8 {[%emt 0:00:
00]} 25. Ne2 {[%emt 0:00:00]} Bd7 {[%emt 0:00:00]} 26. Qd2 {[%emt 0:00:00]}
Rbc8 {[%emt 0:00:00]} 27. Rfd1 {[%emt 0:00:00]} Re8 {[%emt 0:00:00]} 28. Nf4 {
[%emt 0:00:00]} Be6 {[%emt 0:00:00]} 29. Bb1 {[%emt 0:00:00]} Bf7 {[%emt 0:00:
00]} 30. Ba2 {[%emt 0:00:00]} e3 {[%emt 0:00:00]} 31. fxe3 {[%emt 0:00:00]}
Nxe3 {[%emt 0:00:00]} 32. Nxd5 {[%emt 0:00:00]} Bxd5 {[%emt 0:00:00]} 33. Re1 {
[%emt 0:00:00]} Nc4 {[%emt 0:00:00]} 34. Qd3 {[%emt 0:00:00]} Nxa3 {[%emt 0:00:
00]} 35. Rf1 {[%emt 0:00:00]} Qg7 {[%emt 0:00:00]} 36. Nd2 {[%emt 0:00:00]}
Bxa2 {[%emt 0:00:00]} 37. Rxa2 {[%emt 0:00:00]} Nc4 {[%emt 0:00:00]} 38. Nxc4 {
[%emt 0:00:00]} bxc4 {[%emt 0:00:00]} 39. Qxc4+ {[%emt 0:00:00]} Kh8 {[%emt 0:
00:00]} 40. Kh1 {[%emt 0:00:00]} Nxd4 {[%emt 0:00:00]} 41. Qxa6 {[%emt 0:00:00]
} Ra8 {[%emt 0:00:00]} 42. Qxa8 {[%emt 0:00:00]} Rxa8 {[%emt 0:00:00]} 43.
Rxa8+ {[%emt 0:00:00]} Qg8 {[%emt 0:00:00]} 44. Rxg8+ {[%emt 0:00:00]} Kxg8 {
[%emt 0:00:00]} 45. Rd1 {[%emt 0:00:00]} Nf5 {[%emt 0:00:00]} 46. Rd7 {[%emt 0:
00:00]} Kf8 {[%emt 0:00:00]} 47. Rxh7 {[%emt 0:00:00]} Ng7 {[%emt 0:00:00]} 48.
Rh3 {[%emt 0:00:00]} Nf5 {[%emt 0:00:00]} 49. Rf3 {[%emt 0:00:00]} Kg7 {
[%emt 0:00:00]} 50. g3 {[%emt 0:00:00]} Kh6 {[%emt 0:00:00]} 51. Kg2 {[%emt 0:
00:00]} Kg5 {[%emt 0:00:00]} 52. Rf4 {[%emt 0:00:00]} Ne3+ {[%emt 0:00:00]} 53.
Kf3 {[%emt 0:00:00]} Nf5 {[%emt 0:00:00]} 54. h4+ {[%emt 0:00:00]} Kh6 {
[%emt 0:00:24]} 55. Kg4 {[%emt 0:00:00]} Ne3+ {[%emt 0:00:00]} 56. Kh3 {
[%emt 0:00:00]} Nf5 {[%emt 0:00:00]} 57. g4 {[%emt 0:00:00]} Nxh4 {[%emt 0:00:
00]} 58. g5+ {[%emt 0:00:00]} Kh5 {[%emt 0:00:00]} 59. Rxh4+ {[%emt 0:00:00]}
Kxg5 {[%emt 0:00:00]} 60. Kg3 {[%emt 0:00:00]} Kf5 {[%emt 0:00:00]} 61. Rg4 {
[%emt 0:00:00]} g5 {[%emt 0:00:00]} 62. Kf3 {[%emt 0:00:00]} Kg6 {[%emt 0:00:
00]} 63. Ke4 {[%emt 0:00:00]} Kf6 {[%emt 0:00:00]} 64. Rg3 {[%emt 0:00:00]} Kg6
{[%emt 0:00:00]} 65. Ke5 {[%emt 0:00:00]} Kh5 {[%emt 0:00:00]} 66. Kf5 {
[%emt 0:00:00]} Kh4 {[%emt 0:00:00]} 67. Rxg5 {[%emt 0:00:00]} Kh3 {[%emt 0:00:
00]} 68. Rg8 {[%emt 0:00:00]} Kh2 {[%emt 0:00:00]} 69. Kf4 {[%emt 0:00:00]} Kh1
{[%emt 0:00:00]} 70. Kf3 {[%emt 0:00:00]} Kh2 {[%emt 0:00:00]} 71. Rg7 {
[%emt 0:00:00]} Kh1 {[%emt 0:00:00]} 72. Kf2 {[%emt 0:00:00]} Kh2 {[%emt 0:00:
00]} 73. Rh7# {[%emt 0:00:00]} 1-0